[Event "Titled Tuesday Blitz May 30 Early 2023"]
[White "Terletsky, Oleg"]
[Black "Makhmudov, Shukhrat"]
[WhiteFideId "14116774"]
[BlackFideId "14200775"]
[WhiteElo "2084"]
[BlackElo "2135"]
[Result "1-0"]
[Round "03"]
[TimeControl "180+2"]
[Date "2023.05.30"]
[WhiteClock "0:00:12"]
[BlackClock "0:00:26"]

1. e4 {[%clk 0:03:00]}  e5 {[%clk 0:02:56]} 2. Nf3 {[%clk 0:03:00]}  Nc6 {[%clk 0:02:56]} 3. Nc3 {[%clk 0:03:01]}  Nf6 {[%clk 0:02:56]} 4. d4 {[%clk 0:03:01]}  exd4 {[%clk 0:02:56]} 5. Nxd4 {[%clk 0:03:02]}  Bb4 {[%clk 0:02:56]} 6. Nxc6 {[%clk 0:03:03]}  bxc6 {[%clk 0:02:57]} 7. Bd3 {[%clk 0:03:03]}  d5 {[%clk 0:02:58]} 8. exd5 {[%clk 0:03:04]}  cxd5 {[%clk 0:02:59]} 9. O-O {[%clk 0:03:03]}  O-O {[%clk 0:02:59]} 10. Bg5 {[%clk 0:03:04]}  c6 {[%clk 0:03:00]} 11. Qf3 {[%clk 0:03:04]}  Bd6 {[%clk 0:03:00]} 12. h3 {[%clk 0:02:53]}  Rb8 {[%clk 0:03:00]} 13. Rab1 {[%clk 0:02:48]}  Be5 {[%clk 0:03:00]} 14. Na4 {[%clk 0:02:43]}  h6 {[%clk 0:02:56]} 15. Bf4 {[%clk 0:02:40]}  Qd6 {[%clk 0:02:50]} 16. Bxe5 {[%clk 0:02:35]}  Qxe5 {[%clk 0:02:50]} 17. b4 {[%clk 0:02:27]}  Re8 {[%clk 0:02:24]} 18. Nc5 {[%clk 0:02:15]}  Nd7 {[%clk 0:02:22]} 19. Nxd7 {[%clk 0:01:33]}  Bxd7 {[%clk 0:02:22]} 20. Qg3 {[%clk 0:01:25]}  Qxg3 {[%clk 0:02:20]} 21. fxg3 {[%clk 0:01:26]}  Re5 {[%clk 0:02:07]} 22. a3 {[%clk 0:01:22]}  g6 {[%clk 0:01:57]} 23. Rbe1 {[%clk 0:01:20]}  Rbe8 {[%clk 0:01:55]} 24. Rxe5 {[%clk 0:01:18]}  Rxe5 {[%clk 0:01:55]} 25. Kf2 {[%clk 0:01:18]}  Kg7 {[%clk 0:01:55]} 26. Re1 {[%clk 0:01:15]}  Rxe1 {[%clk 0:01:54]} 27. Kxe1 {[%clk 0:01:15]}  Kf6 {[%clk 0:01:54]} 28. Kd2 {[%clk 0:01:13]}  Ke5 {[%clk 0:01:55]} 29. c3 {[%clk 0:01:13]}  d4 {[%clk 0:01:47]} 30. c4 {[%clk 0:00:57]}  f5 {[%clk 0:01:36]} 31. Be2 {[%clk 0:00:51]}  f4 {[%clk 0:01:17]} 32. gxf4+ {[%clk 0:00:37]}  Kxf4 {[%clk 0:01:18]} 33. c5 {[%clk 0:00:31]}  Ke5 {[%clk 0:01:08]} 34. Bf3 {[%clk 0:00:27]}  h5 {[%clk 0:01:02]} 35. h4 {[%clk 0:00:26]}  Be8 {[%clk 0:00:55]} 36. g3 {[%clk 0:00:23]}  Bd7 {[%clk 0:00:54]} 37. a4 {[%clk 0:00:22]}  a6 {[%clk 0:00:49]} 38. a5 {[%clk 0:00:20]}  Bc8 {[%clk 0:00:47]} 39. Be2 {[%clk 0:00:19]}  Ke4 {[%clk 0:00:44]} 40. Bd3+ {[%clk 0:00:16]}  Kf3 {[%clk 0:00:43]} 41. Bxg6 {[%clk 0:00:17]}  Kxg3 {[%clk 0:00:44]} 42. Bxh5 {[%clk 0:00:17]}  Kxh4 {[%clk 0:00:44]} 43. Be8 {[%clk 0:00:17]}  Bb7 {[%clk 0:00:42]} 44. Kd3 {[%clk 0:00:17]}  Kg5 {[%clk 0:00:42]} 45. Kxd4 {[%clk 0:00:18]}  Kf6 {[%clk 0:00:43]} 46. Bh5 {[%clk 0:00:16]}  Ke6 {[%clk 0:00:43]} 47. Bg4+ {[%clk 0:00:16]}  Ke7 {[%clk 0:00:43]} 48. Ke5 {[%clk 0:00:17]}  Kd8 {[%clk 0:00:36]} 49. Kd6 {[%clk 0:00:17]}  Ba8 {[%clk 0:00:36]} 50. Bd7 {[%clk 0:00:16]}  Bb7 {[%clk 0:00:34]} 51. Bxc6 {[%clk 0:00:17]}  Bc8 {[%clk 0:00:32]} 52. Bd5 {[%clk 0:00:16]}  Bd7 {[%clk 0:00:32]} 53. c6 {[%clk 0:00:16]}  Bf5 {[%clk 0:00:30]} 54. Be6 {[%clk 0:00:14]}  Bxe6 {[%clk 0:00:28]} 55. Kxe6 {[%clk 0:00:15]}  Kc7 {[%clk 0:00:28]} 56. Kd5 {[%clk 0:00:16]}  Kc8 {[%clk 0:00:28]} 57. Kd6 {[%clk 0:00:15]}  Kb8 {[%clk 0:00:29]} 58. Kd7 {[%clk 0:00:14]}  Ka8 {[%clk 0:00:28]} 59. c7 {[%clk 0:00:13]}  Ka7 {[%clk 0:00:28]} 60. b5 {[%clk 0:00:13]}  axb5 {[%clk 0:00:26]} 61. c8=Q {[%clk 0:00:12]} 1-0


[Site "https://www.chess.com"]

[Event "Titled Tuesday Blitz May 30 Early 2023"]
[White "FREDERICKtheMATE"]
[Black "Tologon tegin, Semetei"]
[BlackFideId "13800574"]
[WhiteElo "2384"]
[BlackElo "2247"]
[Result "0-1"]
[Round "03"]
[TimeControl "180+2"]
[Date "2023.05.30"]
[WhiteClock "0:01:16"]
[BlackClock "0:01:32"]

1. e4 {[%clk 0:03:00]}  c5 {[%clk 0:02:59]} 2. Nf3 {[%clk 0:03:00]}  e6 {[%clk 0:02:55]} 3. c3 {[%clk 0:03:00]}  d5 {[%clk 0:02:53]} 4. exd5 {[%clk 0:03:00]}  Qxd5 {[%clk 0:02:54]} 5. d4 {[%clk 0:02:59]}  Nf6 {[%clk 0:02:52]} 6. Be3 {[%clk 0:02:57]}  cxd4 {[%clk 0:02:52]} 7. cxd4 {[%clk 0:02:56]}  Nc6 {[%clk 0:02:47]} 8. Nc3 {[%clk 0:02:56]}  Qd8 {[%clk 0:02:45]} 9. Bd3 {[%clk 0:02:54]}  Be7 {[%clk 0:02:45]} 10. O-O {[%clk 0:02:53]}  O-O {[%clk 0:02:45]} 11. a3 {[%clk 0:02:52]}  b6 {[%clk 0:02:45]} 12. Qe2 {[%clk 0:02:52]}  Bb7 {[%clk 0:02:45]} 13. Rfe1 {[%clk 0:02:51]}  Rc8 {[%clk 0:02:42]} 14. Rad1 {[%clk 0:02:50]}  Nd5 {[%clk 0:02:17]} 15. Ne5 {[%clk 0:02:41]}  Nxc3 {[%clk 0:02:00]} 16. bxc3 {[%clk 0:02:40]}  Nxe5 {[%clk 0:02:00]} 17. dxe5 {[%clk 0:02:40]}  Qc7 {[%clk 0:02:00]} 18. Qg4 {[%clk 0:02:12]}  Rfd8 {[%clk 0:01:58]} 19. Bd4 {[%clk 0:02:07]}  Bxa3 {[%clk 0:01:54]} 20. Qh3 {[%clk 0:01:54]}  g6 {[%clk 0:01:52]} 21. Ra1 {[%clk 0:01:53]}  Bb2 {[%clk 0:01:34]} 22. Rxa7 {[%clk 0:01:41]}  Bxc3 {[%clk 0:01:34]} 23. Bxc3 {[%clk 0:01:29]}  Qxc3 {[%clk 0:01:35]} 24. Rd1 {[%clk 0:01:16]}  Rxd3 {[%clk 0:01:32]} 0-1


[Site "https://www.chess.com"]

[Event "Titled Tuesday Blitz May 30 Early 2023"]
[White "Kubicka, Anna"]
[Black "Real_taiatai"]
[WhiteFideId "1152254"]
[WhiteElo "2144"]
[BlackElo "2381"]
[Result "1-0"]
[Round "03"]
[TimeControl "180+2"]
[Date "2023.05.30"]
[WhiteClock "0:02:22"]
[BlackClock "0:02:14"]

1. e4 {[%clk 0:03:00]}  e6 {[%clk 0:02:56]} 2. d4 {[%clk 0:02:59]}  d5 {[%clk 0:02:56]} 3. Nd2 {[%clk 0:02:59]}  dxe4 {[%clk 0:02:56]} 4. Nxe4 {[%clk 0:03:00]}  Nd7 {[%clk 0:02:56]} 5. Nf3 {[%clk 0:03:00]}  Ngf6 {[%clk 0:02:57]} 6. Bd3 {[%clk 0:03:00]}  Nxe4 {[%clk 0:02:57]} 7. Bxe4 {[%clk 0:03:00]}  Nf6 {[%clk 0:02:58]} 8. Bd3 {[%clk 0:03:01]}  c5 {[%clk 0:02:51]} 9. O-O {[%clk 0:03:00]}  Bd7 {[%clk 0:02:50]} 10. Be3 {[%clk 0:02:59]}  Rc8 {[%clk 0:02:50]} 11. Ne5 {[%clk 0:02:56]}  Bd6 {[%clk 0:02:49]} 12. Nxd7 {[%clk 0:02:52]}  Qxd7 {[%clk 0:02:47]} 13. dxc5 {[%clk 0:02:42]}  Bxc5 {[%clk 0:02:48]} 14. Bxc5 {[%clk 0:02:42]}  Rxc5 {[%clk 0:02:49]} 15. Qf3 {[%clk 0:02:38]}  O-O {[%clk 0:02:46]} 16. Rad1 {[%clk 0:02:37]}  Rd5 {[%clk 0:02:40]} 17. c4 {[%clk 0:02:33]}  Rd4 {[%clk 0:02:36]} 18. Be2 {[%clk 0:02:30]}  b6 {[%clk 0:02:28]} 19. h3 {[%clk 0:02:26]}  Rd8 {[%clk 0:02:27]} 20. Rxd4 {[%clk 0:02:26]}  Qxd4 {[%clk 0:02:27]} 21. Rd1 {[%clk 0:02:26]}  Qxd1+ {[%clk 0:02:24]} 22. Bxd1 {[%clk 0:02:25]}  h6 {[%clk 0:02:24]} 23. b4 {[%clk 0:02:24]}  Rd7 {[%clk 0:02:23]} 24. c5 {[%clk 0:02:22]}  bxc5 {[%clk 0:02:24]} 25. bxc5 {[%clk 0:02:23]}  Rc7 {[%clk 0:02:23]} 26. c6 {[%clk 0:02:22]}  Nd5 {[%clk 0:02:23]} 27. Ba4 {[%clk 0:02:22]}  g6 {[%clk 0:02:20]} 28. Qg3 {[%clk 0:02:21]}  h5 {[%clk 0:02:18]} 29. Qd6 {[%clk 0:02:22]}  Kg7 {[%clk 0:02:18]} 30. Bb3 {[%clk 0:02:22]}  Rc8 {[%clk 0:02:16]} 31. Bxd5 {[%clk 0:02:22]}  exd5 {[%clk 0:02:14]} 32. Qxd5 {[%clk 0:02:22]} 1-0


[Site "https://www.chess.com"]

[Event "Titled Tuesday Blitz May 30 Early 2023"]
[White "KVAIDAN"]
[Black "Horak, Martin"]
[BlackFideId "367095"]
[WhiteElo "2315"]
[BlackElo "2091"]
[Result "0-1"]
[Round "03"]
[TimeControl "180+2"]
[Date "2023.05.30"]
[WhiteClock "0:01:26"]
[BlackClock "0:00:31"]

1. f4 {[%clk 0:03:00]}  d5 {[%clk 0:02:59]} 2. Nf3 {[%clk 0:03:00]}  Nf6 {[%clk 0:03:00]} 3. e3 {[%clk 0:03:00]}  c5 {[%clk 0:03:00]} 4. b3 {[%clk 0:03:00]}  e6 {[%clk 0:03:00]} 5. Bb2 {[%clk 0:02:59]}  Be7 {[%clk 0:03:01]} 6. Bd3 {[%clk 0:02:59]}  Nc6 {[%clk 0:03:00]} 7. O-O {[%clk 0:03:00]}  Nb4 {[%clk 0:02:57]} 8. Be2 {[%clk 0:02:59]}  O-O {[%clk 0:02:57]} 9. Ne5 {[%clk 0:02:59]}  Bd7 {[%clk 0:02:56]} 10. Rf3 {[%clk 0:03:00]}  Ne4 {[%clk 0:02:48]} 11. Rh3 {[%clk 0:02:59]}  f6 {[%clk 0:02:23]} 12. Nxd7 {[%clk 0:02:58]}  Qxd7 {[%clk 0:02:23]} 13. a3 {[%clk 0:02:56]}  Nc6 {[%clk 0:02:22]} 14. Bd3 {[%clk 0:02:56]}  g6 {[%clk 0:01:53]} 15. Qe1 {[%clk 0:02:45]}  f5 {[%clk 0:01:51]} 16. c4 {[%clk 0:02:42]}  Bf6 {[%clk 0:01:42]} 17. Nc3 {[%clk 0:02:38]}  Rad8 {[%clk 0:01:30]} 18. cxd5 {[%clk 0:02:36]}  exd5 {[%clk 0:01:26]} 19. Bb5 {[%clk 0:02:35]}  a6 {[%clk 0:01:20]} 20. Bxc6 {[%clk 0:02:35]}  Qxc6 {[%clk 0:01:19]} 21. d3 {[%clk 0:02:36]}  Nxc3 {[%clk 0:01:13]} 22. Bxc3 {[%clk 0:02:35]}  Rfe8 {[%clk 0:01:10]} 23. Rc1 {[%clk 0:02:31]}  Re7 {[%clk 0:01:08]} 24. Bxf6 {[%clk 0:02:27]}  Qxf6 {[%clk 0:01:07]} 25. Rxc5 {[%clk 0:02:27]}  d4 {[%clk 0:01:05]} 26. e4 {[%clk 0:02:18]}  fxe4 {[%clk 0:01:05]} 27. dxe4 {[%clk 0:02:18]}  Qxf4 {[%clk 0:01:03]} 28. e5 {[%clk 0:02:14]}  d3 {[%clk 0:00:56]} 29. b4 {[%clk 0:02:08]}  d2 {[%clk 0:00:53]} 30. Qd1 {[%clk 0:02:08]}  Rxe5 {[%clk 0:00:47]} 31. Rxe5 {[%clk 0:02:08]}  Qxe5 {[%clk 0:00:47]} 32. Rf3 {[%clk 0:02:09]}  Qd4+ {[%clk 0:00:37]} 33. Kh1 {[%clk 0:02:09]}  Rc8 {[%clk 0:00:33]} 34. Qb3+ {[%clk 0:01:33]}  Qc4 {[%clk 0:00:32]} 35. Qd1 {[%clk 0:01:29]}  Qc1 {[%clk 0:00:31]} 36. Rf1 {[%clk 0:01:27]}  Qxd1 {[%clk 0:00:31]} 37. Rxd1 {[%clk 0:01:27]}  Rc1 {[%clk 0:00:32]} 38. Rg1 {[%clk 0:01:26]}  Rxg1+ {[%clk 0:00:31]} 0-1


[Site "https://www.chess.com"]

[Event "Titled Tuesday Blitz May 30 Early 2023"]
[White "rikchessmx"]
[Black "Ronka, Erik"]
[BlackFideId "505080"]
[WhiteElo "2298"]
[BlackElo "2264"]
[Result "0-1"]
[Round "03"]
[TimeControl "180+2"]
[Date "2023.05.30"]
[WhiteClock "0:00:53"]
[BlackClock "0:01:08"]

1. e4 {[%clk 0:03:00]}  c6 {[%clk 0:02:58]} 2. d4 {[%clk 0:03:00]}  d5 {[%clk 0:02:59]} 3. Nc3 {[%clk 0:03:00]}  dxe4 {[%clk 0:02:59]} 4. Nxe4 {[%clk 0:03:01]}  Bf5 {[%clk 0:02:59]} 5. Ng3 {[%clk 0:03:01]}  Bg6 {[%clk 0:03:00]} 6. h4 {[%clk 0:03:01]}  h6 {[%clk 0:03:00]} 7. Nf3 {[%clk 0:03:02]}  Nd7 {[%clk 0:02:59]} 8. h5 {[%clk 0:03:02]}  Bh7 {[%clk 0:03:00]} 9. Bc4 {[%clk 0:03:02]}  e6 {[%clk 0:02:59]} 10. Bb3 {[%clk 0:03:02]}  Ngf6 {[%clk 0:02:59]} 11. Qe2 {[%clk 0:03:02]}  Be7 {[%clk 0:02:47]} 12. c3 {[%clk 0:03:00]}  O-O {[%clk 0:02:43]} 13. Ne5 {[%clk 0:02:56]}  Nxe5 {[%clk 0:02:38]} 14. Qxe5 {[%clk 0:02:52]}  a5 {[%clk 0:02:31]} 15. a3 {[%clk 0:02:46]}  a4 {[%clk 0:02:29]} 16. Ba2 {[%clk 0:02:46]}  Qa5 {[%clk 0:02:27]} 17. Qe2 {[%clk 0:02:40]}  c5 {[%clk 0:02:24]} 18. Be3 {[%clk 0:02:34]}  Rfd8 {[%clk 0:02:23]} 19. O-O {[%clk 0:02:32]}  cxd4 {[%clk 0:02:20]} 20. Bxd4 {[%clk 0:02:32]}  Qg5 {[%clk 0:01:58]} 21. Rfe1 {[%clk 0:02:12]}  Kh8 {[%clk 0:01:56]} 22. Rad1 {[%clk 0:02:00]}  Qg4 {[%clk 0:01:40]} 23. Qe5 {[%clk 0:01:43]}  Qg5 {[%clk 0:01:22]} 24. Qc7 {[%clk 0:01:37]}  Rd7 {[%clk 0:01:22]} 25. Be5 {[%clk 0:01:19]}  Rxc7 {[%clk 0:01:18]} 26. Bxc7 {[%clk 0:01:17]}  Nxh5 {[%clk 0:01:15]} 27. Nxh5 {[%clk 0:01:15]}  Qxh5 {[%clk 0:01:16]} 28. Rd7 {[%clk 0:01:11]}  Bc5 {[%clk 0:01:09]} 29. Red1 {[%clk 0:00:53]}  Bg6 {[%clk 0:01:08]} 0-1


[Site "https://www.chess.com"]

[Event "Titled Tuesday Blitz May 30 Early 2023"]
[White "LangesNasenhaar"]
[Black "Levitan, Caleb Levi"]
[BlackFideId "14332620"]
[WhiteElo "2502"]
[BlackElo "1963"]
[Result "1-0"]
[Round "03"]
[TimeControl "180+2"]
[Date "2023.05.30"]
[WhiteClock "0:01:22"]
[BlackClock "0:00:00"]

1. d4 {[%clk 0:03:00]}  d5 {[%clk 0:02:56]} 2. Nc3 {[%clk 0:03:01]}  Nf6 {[%clk 0:02:52]} 3. Bf4 {[%clk 0:03:01]}  c5 {[%clk 0:02:46]} 4. e4 {[%clk 0:03:00]}  dxe4 {[%clk 0:02:36]} 5. dxc5 {[%clk 0:03:00]}  Bd7 {[%clk 0:02:14]} 6. Qd2 {[%clk 0:02:38]}  Nc6 {[%clk 0:02:12]} 7. O-O-O {[%clk 0:02:36]}  a6 {[%clk 0:01:54]} 8. Nge2 {[%clk 0:02:20]}  e6 {[%clk 0:01:48]} 9. Ng3 {[%clk 0:02:20]}  Bxc5 {[%clk 0:00:53]} 10. Ngxe4 {[%clk 0:02:15]}  Be7 {[%clk 0:00:53]} 11. Nd6+ {[%clk 0:02:11]}  Bxd6 {[%clk 0:00:49]} 12. Bxd6 {[%clk 0:02:11]}  Qa5 {[%clk 0:00:41]} 13. Kb1 {[%clk 0:02:02]}  O-O-O {[%clk 0:00:35]} 14. Bc4 {[%clk 0:01:42]}  Na7 {[%clk 0:00:09]} 15. Nb5 {[%clk 0:01:24]}  Nc6 {[%clk 0:00:00]} 16. Qxa5 {[%clk 0:01:22]} 1-0


[Site "https://www.chess.com"]

[Event "Titled Tuesday Blitz May 30 Early 2023"]
[White "Ljukin, Sergei"]
[Black "Blokhin, Sofia"]
[WhiteFideId "14102200"]
[BlackFideId "4508190"]
[WhiteElo "2312"]
[BlackElo "1994"]
[Result "1-0"]
[Round "03"]
[TimeControl "180+2"]
[Date "2023.05.30"]
[WhiteClock "0:01:27"]
[BlackClock "0:00:54"]

1. e4 {[%clk 0:02:44]}  c5 {[%clk 0:02:59]} 2. Nf3 {[%clk 0:02:44]}  e6 {[%clk 0:02:58]} 3. d4 {[%clk 0:02:44]}  cxd4 {[%clk 0:02:58]} 4. Nxd4 {[%clk 0:02:45]}  a6 {[%clk 0:02:59]} 5. Bd3 {[%clk 0:02:44]}  Nf6 {[%clk 0:02:56]} 6. O-O {[%clk 0:02:43]}  Qc7 {[%clk 0:02:56]} 7. Qe2 {[%clk 0:02:43]}  d6 {[%clk 0:02:51]} 8. c4 {[%clk 0:02:42]}  Be7 {[%clk 0:02:46]} 9. Nc3 {[%clk 0:02:42]}  O-O {[%clk 0:02:46]} 10. f4 {[%clk 0:02:43]}  Nc6 {[%clk 0:02:44]} 11. Nxc6 {[%clk 0:02:40]}  bxc6 {[%clk 0:02:42]} 12. e5 {[%clk 0:02:22]}  dxe5 {[%clk 0:02:39]} 13. fxe5 {[%clk 0:02:22]}  Bc5+ {[%clk 0:02:37]} 14. Kh1 {[%clk 0:02:21]}  Nd7 {[%clk 0:02:33]} 15. Bf4 {[%clk 0:02:20]}  g6 {[%clk 0:02:31]} 16. Rad1 {[%clk 0:01:55]}  Bb7 {[%clk 0:02:23]} 17. Ne4 {[%clk 0:01:54]}  Be7 {[%clk 0:02:17]} 18. Nf6+ {[%clk 0:01:44]}  Bxf6 {[%clk 0:02:04]} 19. exf6 {[%clk 0:01:44]}  e5 {[%clk 0:02:04]} 20. Bg3 {[%clk 0:01:43]}  Rfe8 {[%clk 0:01:47]} 21. Qe3 {[%clk 0:01:42]}  Re6 {[%clk 0:01:36]} 22. Bf5 {[%clk 0:01:31]}  gxf5 {[%clk 0:01:16]} 23. Qg5+ {[%clk 0:01:30]}  Kf8 {[%clk 0:01:16]} 24. Rxd7 {[%clk 0:01:30]}  Qb6 {[%clk 0:00:55]} 25. Qg7+ {[%clk 0:01:26]}  Ke8 {[%clk 0:00:54]} 26. Qxf7# {[%clk 0:01:27]} 1-0


[Site "https://www.chess.com"]

[Event "Titled Tuesday Blitz May 30 Early 2023"]
[White "Omariev, Maksim"]
[Black "Bashirli, Saadat"]
[WhiteFideId "4193423"]
[BlackFideId "13429990"]
[WhiteElo "2495"]
[BlackElo "1408"]
[Result "0-1"]
[Round "03"]
[TimeControl "180+2"]
[Date "2023.05.30"]
[WhiteClock "0:00:00"]
[BlackClock "0:00:56"]

1. g4 {[%clk 0:03:00]}  d5 {[%clk 0:02:58]} 2. Bg2 {[%clk 0:03:01]}  Bxg4 {[%clk 0:02:58]} 3. c4 {[%clk 0:03:01]}  e6 {[%clk 0:02:57]} 4. Qb3 {[%clk 0:02:59]}  Bc5 {[%clk 0:02:34]} 5. cxd5 {[%clk 0:02:47]}  exd5 {[%clk 0:02:34]} 6. Bxd5 {[%clk 0:02:04]}  Qf6 {[%clk 0:02:26]} 7. Qxb7 {[%clk 0:01:58]}  Qxf2+ {[%clk 0:02:10]} 8. Kd1 {[%clk 0:01:58]}  Qf1+ {[%clk 0:02:01]} 9. Kc2 {[%clk 0:01:57]}  Bf5+ {[%clk 0:02:01]} 10. e4 {[%clk 0:01:42]}  Bg4 {[%clk 0:01:53]} 11. Nc3 {[%clk 0:01:25]}  Ne7 {[%clk 0:01:43]} 12. Qxa8 {[%clk 0:01:11]}  O-O {[%clk 0:01:39]} 13. b3 {[%clk 0:01:06]}  Na6 {[%clk 0:01:30]} 14. Qxf8+ {[%clk 0:00:24]}  Kxf8 {[%clk 0:01:29]} 15. a3 {[%clk 0:00:25]}  Qg2 {[%clk 0:01:18]} 16. Bb2 {[%clk 0:00:20]}  Qxh1 {[%clk 0:01:17]} 17. Nge2 {[%clk 0:00:20]}  Qxh2 {[%clk 0:01:17]} 18. Nc1 {[%clk 0:00:17]}  Be3 {[%clk 0:01:14]} 19. Nb1 {[%clk 0:00:12]}  Nxd5 {[%clk 0:01:13]} 20. exd5 {[%clk 0:00:13]}  Bf5+ {[%clk 0:01:12]} 21. Kc3 {[%clk 0:00:04]}  Qe5+ {[%clk 0:01:12]} 22. Kc4 {[%clk 0:00:05]}  Qxb2 {[%clk 0:01:09]} 23. Ra2 {[%clk 0:00:03]}  Qxc1+ {[%clk 0:01:07]} 24. Nc3 {[%clk 0:00:03]}  Bxd2 {[%clk 0:01:05]} 25. Rxd2 {[%clk 0:00:02]}  Qxd2 {[%clk 0:01:05]} 26. b4 {[%clk 0:00:03]}  Bd3+ {[%clk 0:01:04]} 27. Kd4 {[%clk 0:00:03]}  Bb5+ {[%clk 0:01:03]} 28. Ke5 {[%clk 0:00:02]}  Qxc3+ {[%clk 0:01:03]} 29. Kf5 {[%clk 0:00:03]}  Bd3+ {[%clk 0:01:02]} 30. Kf4 {[%clk 0:00:03]}  Qd4+ {[%clk 0:01:02]} 31. Kf3 {[%clk 0:00:03]}  Qe4+ {[%clk 0:01:02]} 32. Kf2 {[%clk 0:00:04]}  Qe2+ {[%clk 0:01:01]} 33. Kg3 {[%clk 0:00:04]}  f5 {[%clk 0:01:00]} 34. Kf4 {[%clk 0:00:04]}  Qe4+ {[%clk 0:00:59]} 35. Kg3 {[%clk 0:00:03]}  f4+ {[%clk 0:00:58]} 36. Kh2 {[%clk 0:00:00]}  Bf1 {[%clk 0:00:56]} 0-1


[Site "https://www.chess.com"]

[Event "Titled Tuesday Blitz May 30 Early 2023"]
[White "Karas, Marek"]
[Black "De Souza, Cristiano Gomes"]
[WhiteFideId "14928558"]
[BlackFideId "2151758"]
[WhiteElo "2233"]
[BlackElo "2068"]
[Result "1-0"]
[Round "03"]
[TimeControl "180+2"]
[Date "2023.05.30"]
[WhiteClock "0:00:05"]
[BlackClock "0:00:00"]

1. Nc3 {[%clk 0:02:59]}  Nf6 {[%clk 0:02:58]} 2. d4 {[%clk 0:02:55]}  g6 {[%clk 0:02:57]} 3. Bf4 {[%clk 0:02:45]}  d6 {[%clk 0:02:57]} 4. e4 {[%clk 0:02:28]}  c6 {[%clk 0:02:56]} 5. Qd2 {[%clk 0:02:28]}  b5 {[%clk 0:02:56]} 6. Bd3 {[%clk 0:02:28]}  b4 {[%clk 0:02:55]} 7. Nce2 {[%clk 0:02:28]}  a5 {[%clk 0:02:54]} 8. Nf3 {[%clk 0:02:27]}  Ba6 {[%clk 0:02:54]} 9. O-O {[%clk 0:02:27]}  Bg7 {[%clk 0:02:53]} 10. Ng3 {[%clk 0:02:03]}  h5 {[%clk 0:02:51]} 11. h4 {[%clk 0:01:54]}  Ng4 {[%clk 0:02:49]} 12. c3 {[%clk 0:01:51]}  Qb6 {[%clk 0:02:45]} 13. Nh2 {[%clk 0:01:41]}  Nxh2 {[%clk 0:02:39]} 14. Kxh2 {[%clk 0:01:41]}  Nd7 {[%clk 0:02:31]} 15. Rfe1 {[%clk 0:01:37]}  e5 {[%clk 0:02:29]} 16. dxe5 {[%clk 0:01:36]}  Nxe5 {[%clk 0:02:28]} 17. Bxa6 {[%clk 0:01:34]}  Rxa6 {[%clk 0:02:23]} 18. Qxd6 {[%clk 0:01:32]}  Ng4+ {[%clk 0:02:16]} 19. Kg1 {[%clk 0:01:23]}  Qxf2+ {[%clk 0:02:13]} 20. Kh1 {[%clk 0:01:22]}  Qa7 {[%clk 0:01:36]} 21. Nf5 {[%clk 0:01:06]}  Bf6 {[%clk 0:00:54]} 22. e5 {[%clk 0:00:59]}  Be7 {[%clk 0:00:43]} 23. Nxe7 {[%clk 0:00:42]}  Qxe7 {[%clk 0:00:42]} 24. Qb8+ {[%clk 0:00:42]}  Qd8 {[%clk 0:00:42]} 25. Qxd8+ {[%clk 0:00:39]}  Kxd8 {[%clk 0:00:42]} 26. e6 {[%clk 0:00:35]}  Ke7 {[%clk 0:00:36]} 27. exf7+ {[%clk 0:00:32]}  Kxf7 {[%clk 0:00:37]} 28. Bg5 {[%clk 0:00:26]}  Re8 {[%clk 0:00:34]} 29. Rxe8 {[%clk 0:00:25]}  Kxe8 {[%clk 0:00:34]} 30. Re1+ {[%clk 0:00:25]}  Kf8 {[%clk 0:00:30]} 31. Re6 {[%clk 0:00:23]}  bxc3 {[%clk 0:00:28]} 32. bxc3 {[%clk 0:00:22]}  Rb6 {[%clk 0:00:28]} 33. g3 {[%clk 0:00:16]}  Rb2 {[%clk 0:00:26]} 34. Rxg6 {[%clk 0:00:09]}  Rxa2 {[%clk 0:00:25]} 35. Rxc6 {[%clk 0:00:09]}  a4 {[%clk 0:00:24]} 36. Ra6 {[%clk 0:00:07]}  Rc2 {[%clk 0:00:20]} 37. Rxa4 {[%clk 0:00:05]}  Rxc3 {[%clk 0:00:19]} 38. Bf4 {[%clk 0:00:05]}  Nf2+ {[%clk 0:00:17]} 39. Kg2 {[%clk 0:00:04]}  Nd3 {[%clk 0:00:18]} 40. Bg5 {[%clk 0:00:03]}  Ne5 {[%clk 0:00:16]} 41. Bf4 {[%clk 0:00:03]}  Ng4 {[%clk 0:00:16]} 42. Bd6+ {[%clk 0:00:03]}  Kf7 {[%clk 0:00:16]} 43. Ra5 {[%clk 0:00:03]}  Rc2+ {[%clk 0:00:15]} 44. Kf3 {[%clk 0:00:02]}  Kg6 {[%clk 0:00:15]} 45. Rg5+ {[%clk 0:00:02]}  Kh6 {[%clk 0:00:15]} 46. Bf4 {[%clk 0:00:02]}  Rc3+ {[%clk 0:00:15]} 47. Ke4 {[%clk 0:00:02]}  Nf6+ {[%clk 0:00:14]} 48. Kf5 {[%clk 0:00:02]}  Rc5+ {[%clk 0:00:13]} 49. Kxf6 {[%clk 0:00:03]}  Rc6+ {[%clk 0:00:12]} 50. Kf5 {[%clk 0:00:03]}  Rc5+ {[%clk 0:00:12]} 51. Be5 {[%clk 0:00:02]}  Rc1 {[%clk 0:00:09]} 52. Rg8 {[%clk 0:00:02]}  Rf1+ {[%clk 0:00:08]} 53. Bf4+ {[%clk 0:00:03]}  Kh7 {[%clk 0:00:08]} 54. Ra8 {[%clk 0:00:03]}  Rb1 {[%clk 0:00:06]} 55. Ra7+ {[%clk 0:00:03]}  Kg8 {[%clk 0:00:06]} 56. Kg5 {[%clk 0:00:04]}  Rb5+ {[%clk 0:00:06]} 57. Kf6 {[%clk 0:00:04]}  Rb6+ {[%clk 0:00:06]} 58. Kf5 {[%clk 0:00:05]}  Rb5+ {[%clk 0:00:06]} 59. Be5 {[%clk 0:00:05]}  Rb3 {[%clk 0:00:05]} 60. Kg6 {[%clk 0:00:06]}  Rxg3+ {[%clk 0:00:04]} 61. Bxg3 {[%clk 0:00:05]}  Kf8 {[%clk 0:00:00]} 62. Kxh5 {[%clk 0:00:05]} 1-0


[Site "https://www.chess.com"]

[Event "Titled Tuesday Blitz May 30 Early 2023"]
[White "Zainullina, Nataliya"]
[Black "Zheenbekov, Nurgazy"]
[WhiteFideId "4145488"]
[BlackFideId "13800485"]
[WhiteElo "2190"]
[BlackElo "1975"]
[Result "0-1"]
[Round "03"]
[TimeControl "180+2"]
[Date "2023.05.30"]
[WhiteClock "0:02:14"]
[BlackClock "0:00:59"]

1. Nf3 {[%clk 0:03:00]}  f5 {[%clk 0:02:56]} 2. g3 {[%clk 0:02:59]}  Nf6 {[%clk 0:02:56]} 3. Bg2 {[%clk 0:03:00]}  g6 {[%clk 0:02:55]} 4. O-O {[%clk 0:03:00]}  Bg7 {[%clk 0:02:55]} 5. d3 {[%clk 0:03:00]}  O-O {[%clk 0:02:55]} 6. Nbd2 {[%clk 0:03:00]}  d6 {[%clk 0:02:55]} 7. e4 {[%clk 0:02:54]}  Nc6 {[%clk 0:02:52]} 8. c3 {[%clk 0:02:54]}  e5 {[%clk 0:02:49]} 9. Re1 {[%clk 0:02:55]}  f4 {[%clk 0:02:43]} 10. Nf1 {[%clk 0:02:52]}  Nh5 {[%clk 0:02:36]} 11. d4 {[%clk 0:02:50]}  Bg4 {[%clk 0:02:14]} 12. dxe5 {[%clk 0:02:41]}  Nxe5 {[%clk 0:02:04]} 13. Qb3+ {[%clk 0:02:30]}  Kh8 {[%clk 0:02:03]} 14. Nxe5 {[%clk 0:02:31]}  Bxe5 {[%clk 0:01:56]} 15. f3 {[%clk 0:02:30]}  fxg3 {[%clk 0:01:37]} 16. fxg4 {[%clk 0:02:26]}  gxh2+ {[%clk 0:01:36]} 17. Kh1 {[%clk 0:02:24]}  Rxf1+ {[%clk 0:01:35]} 18. Bxf1 {[%clk 0:02:24]}  Ng3+ {[%clk 0:01:33]} 19. Kg2 {[%clk 0:02:24]}  h1=Q+ {[%clk 0:01:31]} 20. Kf2 {[%clk 0:02:23]}  Qf6+ {[%clk 0:01:26]} 21. Ke3 {[%clk 0:02:21]}  Qhf3+ {[%clk 0:01:05]} 22. Kd2 {[%clk 0:02:19]}  Nxf1+ {[%clk 0:01:02]} 23. Rxf1 {[%clk 0:02:16]}  Qxf1 {[%clk 0:01:00]} 24. Qg8+ {[%clk 0:02:14]}  Kxg8 {[%clk 0:00:59]} 0-1


[Site "https://www.chess.com"]